bitfinex/quotes_ETHUSD_20250623
["timestamp","ask_amount","ask_price","bid_price","bid_amount"]
[1750716614194,0.55959,2394.7,2392.6,11.4826]
[1750716614340,10.0,2394.6,2392.6,11.4826]
[1750716614540,30.0,2394.3,2392.6,5.60299633]
[1750716614772,1.5219,2394.2,2392.6,1.4236]
[1750716615043,10.0,2394.1,2392.3,10.42183516]
[1750716615352,10.085,2394.9,2393.2,1.4236]
[1750716615353,0.04,2394.9,2393.2,1.4236]
[1750716615538,0.04,2394.9,2393.4,20.0]
[1750716615741,0.04,2394.9,2393.8,0.55]
[1750716615942,0.04,2394.9,2394.8,4.17571404]
[1750716616372,0.005,2395.5,2395.4,14.72466811]
[1750716616708,0.04,2395.9,2395.4,2.02717234]
[1750716616994,0.04,2395.9,2395.8,4.17397111]
[1750716617138,0.04,2395.9,2395.6,0.37653841]
[1750716617464,0.04,2395.9,2394.2,1.4236]
[1750716617640,1.5219,2395.8,2394.2,1.4236]
[1750716618441,1.5219,2395.8,2394.2,1.80064825]
[1750716618853,1.5219,2395.8,2394.2,0.37711568]
[1750716619176,1.5219,2395.8,2394.1,10.46511568]
[1750716619353,1.5219,2395.8,2394.5,4.17616168]
[1750716619551,1.5219,2395.8,2394.2,0.55]
[1750716619770,0.04,2395.9,2395.4,0.55]
[1750716619956,0.04,2395.9,2395.5,1.4236]
[1750716620278,0.04,2395.9,2395.1,0.37663698]
[1750716620584,0.04,2395.9,2394.9,1.4236]
[1750716620768,0.04,2395.9,2395.0,10.649]
[1750716620969,0.04,2395.9,2395.1,4.17509863]
[1750716621290,0.04,2395.9,2395.3,0.55]
[1750716621579,0.04,2395.9,2395.1,10.104]
[1750716621769,0.04,2395.9,2395.0,10.093]
[1750716622143,0.04,2395.9,2395.1,0.55]
[1750716622486,0.04,2395.9,2394.4,1.4236]
[1750716622685,0.04,2395.9,2393.7,10.035]
[1750716622686,0.04,2395.9,2395.4,5.548137]
[1750716622887,0.04,2395.9,2395.8,10.55]
[1750716623089,0.2903534,2396.9,2395.8,18.95483726]
[1750716623298,0.2903534,2396.9,2395.9,1.29929144]
[1750716623592,0.2903534,2396.9,2396.0,0.55]
[1750716624155,0.2903534,2396.9,2396.6,0.55]
[1750716624415,0.2903534,2396.9,2396.1,4.17338431]
[1750716624416,0.2903534,2396.9,2396.8,4.72222963]
[1750716624556,0.036,2398.8,2398.7,4.16892483]
[1750716624887,0.036,2398.8,2398.5,1.3984]
[1750716625089,0.036,2398.8,2398.4,0.55]
[1750716625289,0.036,2398.8,2398.3,10.076]
[1750716625290,0.036,2398.8,2397.9,1.4058]
[1750716625509,0.036,2398.8,2398.7,4.16892483]
[1750716625799,0.036,2398.8,2398.7,14.85292483]
[1750716625955,0.036,2398.8,2398.7,25.59913875]
[1750716626152,0.04,2398.9,2398.8,36.76530704]
[1750716626490,0.04,2399.9,2399.1,0.55]
[1750716626694,1.4878,2399.4,2397.8,1.5152]
[1750716626906,1.4878,2399.4,2397.9,10.158]
[1750716627199,10.04,2399.9,2399.1,4.71822975]
[1750716627200,0.04,2399.9,2399.1,4.71822975]
[1750716627399,0.04,2399.9,2398.1,10.0]
[1750716627400,0.04,2399.9,2398.6,10.179]
[1750716627606,0.04,2399.9,2398.4,10.183]
[1750716627809,10.04,2399.9,2398.5,0.55]
[1750716627973,10.04,2399.9,2398.5,10.731]
[1750716628481,10.04,2399.9,2398.9,0.55]
[1750716628482,0.04,2399.9,2398.9,0.55]
[1750716628669,0.04,2399.9,2397.7,4.1705865]
[1750716628999,0.04,2399.9,2399.1,14.71822975]
[1750716629210,0.04,2399.9,2399.8,4.16701391]
[1750716629367,0.04,2399.9,2399.4,10.147]
[1750716629679,0.04,2399.9,2398.1,4.16996789]
[1750716629879,0.04,2399.9,2398.0,1.5152]
[1750716629880,30.0,2399.6,2398.2,4.16965298]
[1750716630095,1.4878,2399.8,2398.0,10.165]
[1750716630399,1.4878,2399.8,2398.1,10.50710166]
[1750716630602,1.4878,2399.8,2398.2,10.50708715]
[1750716630768,1.4878,2399.8,2398.2,0.34808715]
[1750716630962,30.0,2399.6,2398.0,4.17004414]
[1750716631172,30.0,2399.6,2397.9,10.148]
[1750716631413,30.0,2399.6,2398.0,10.153]
[1750716631706,1.15278,2399.7,2398.1,4.16996789]
[1750716632024,10.0,2399.6,2397.5,2.911821]
[1750716632173,11.4878,2399.8,2398.2,10.15]
[1750716632374,11.4878,2399.8,2398.4,4.16934578]
[1750716632642,10.0,2399.6,2397.4,1.5152]
[1750716632769,10.0,2399.6,2398.0,0.55]
[1750716632970,4.0,2399.5,2398.7,4.16892283]
[1750716633227,1.4878,2399.8,2398.6,4.1689863]
[1750716633504,1.4878,2399.8,2398.2,0.55]
[1750716633680,1.4878,2399.8,2398.3,4.16946381]
[1750716633880,11.4878,2399.8,2397.8,10.0]
[1750716634082,11.4172,2399.6,2398.0,4.17014178]
[1750716634332,11.4172,2399.6,2397.2,4.026]
[1750716634333,1.4172,2399.1,2397.2,4.17153345]
[1750716634617,1.4687,2398.6,2396.5,1.4731]
[1750716634920,1.4687,2398.6,2398.1,4.16987445]
[1750716635139,1.4687,2398.6,2397.3,4.17135944]
[1750716635140,1.4687,2398.6,2398.3,4.16961844]
[1750716635438,1.4687,2398.6,2398.3,4.16948399]
[1750716635593,1.4687,2398.6,2398.0,10.106]
[1750716635933,1.4687,2399.0,2397.4,11.6102]
[1750716636135,1.4687,2399.0,2397.6,4.17074681]
[1750716636452,1.4687,2399.0,2397.7,4.17066355]
[1750716636744,1.4687,2399.0,2398.0,10.55]
[1750716637030,1.4687,2399.0,2398.7,4.16891013]
[1750716637348,1.4687,2399.8,2398.4,1.5042]
[1750716637545,1.8201699,2399.8,2398.6,0.55]
[1750716637692,1.4687,2399.8,2399.0,4.16824621]
[1750716637892,1.4687,2399.8,2398.2,10.0]
[1750716638121,1.4687,2399.8,2398.3,0.36808391]
[1750716638324,1.4687,2399.8,2398.2,0.36808391]
[1750716638533,30.0,2399.5,2398.2,4.16970308]
[1750716638859,40.0,2399.1,2397.6,14.23678032]
[1750716639138,10.0,2398.8,2397.2,14.23347064]
[1750716639434,10.0,2398.7,2397.1,0.04]
[1750716639651,30.0,2398.5,2397.1,10.099]
[1750716639941,30.0,2398.5,2397.1,0.04]
[1750716640090,10.0,2398.4,2397.2,4.17139361]
[1750716640287,10.0,2398.4,2397.1,0.04]
[1750716640288,1.4787,2398.5,2397.1,4.21169317]
[1750716640488,1.0,2398.6,2397.1,0.04]
[1750716640489,1.4203,2398.2,2397.1,0.04]
[1750716640725,11.14203,2398.1,2397.1,0.04]
[1750716640938,31.4203,2397.8,2397.1,0.04]
[1750716641109,30.0,2397.6,2397.1,0.04]
[1750716641304,1.4524,2397.6,2397.1,0.04]
[1750716641628,30.0,2397.5,2397.1,0.04]
[1750716641930,1.4524,2397.3,2397.1,0.04]
[1750716645463,0.715,2397.0,2396.1,0.04]
[1750716645622,10.715,2396.8,2396.1,0.04]
[1750716645945,10.55,2396.4,2394.1,0.04]
[1750716646116,10.0,2396.1,2394.5,4.17617357]
[1750716646320,10.0,2395.7,2394.1,0.04]
[1750716646545,3.923,2395.6,2394.1,4.21689979]
[1750716646859,3.923,2395.6,2394.9,4.17540486]
[1750716647036,3.923,2395.6,2394.8,4.17562986]
[1750716647245,3.923,2395.6,2394.1,0.04]
[1750716647246,40.0,2395.4,2394.1,0.04]
[1750716647545,1.4987,2395.5,2394.5,4.17614858]
[1750716647756,1.4987,2395.5,2394.4,1.4337]
[1750716647980,1.4987,2395.5,2394.1,0.04]
[1750716648257,11.4335,2395.1,2394.1,0.04]
[1750716648558,11.4335,2394.7,2394.1,0.04]
[1750716648877,10.0,2394.9,2394.1,0.04]
[1750716648878,1.4335,2394.6,2394.1,0.04]
[1750716649966,30.0,2394.5,2394.1,0.04]
[1750716650631,1.4335,2394.6,2394.3,4.17645157]
[1750716650828,1.4335,2394.6,2394.1,0.04]
[1750716650829,1.3906,2395.7,2394.4,4.17629724]
[1750716651032,11.3906,2395.4,2394.1,0.04]
[1750716651347,30.0,2394.9,2394.1,0.04]
[1750716651523,10.0,2395.0,2394.1,0.04]
[1750716651868,1.3906,2395.2,2394.1,0.04]
[1750716652027,1.3906,2394.9,2394.1,0.04]
[1750716652222,40.0,2394.6,2394.1,0.04]
[1750716652476,11.4771,2394.5,2394.1,0.04]
[1750716652676,10.0,2394.3,2394.1,0.04]
[1750716653323,30.0,2394.0,2393.1,0.04]
[1750716653833,10.0,2393.9,2393.1,0.04]
[1750716654034,40.0,2393.7,2393.1,0.04]
[1750716654238,10.0,2393.6,2393.1,0.04]
[1750716654441,1.4051,2394.1,2393.1,0.04]
[1750716654641,30.0,2393.8,2393.1,0.04]
[1750716654964,1.4051,2394.1,2393.1,0.04]
[1750716655527,1.4051,2394.1,2393.1,0.46188529]
[1750716655738,1.4051,2394.1,2393.1,0.04]
[1750716656561,1.4051,2394.1,2393.1,4.21866073]
[1750716656764,1.4051,2394.1,2393.1,0.04]
[1750716656965,1.4051,2394.1,2393.3,4.1783262]
[1750716657323,1.4051,2394.1,2393.1,4.24579364]
[1750716657324,30.0,2394.0,2393.1,0.0671554]
[1750716657538,33.14051,2394.0,2393.1,0.0671554]
[1750716657756,10.0,2393.9,2393.1,0.0671554]
[1750716658538,1.4051,2394.1,2393.1,0.0671554]
[1750716658836,40.0,2394.0,2393.1,0.0671554]
[1750716659035,1.4051,2394.1,2393.1,0.0671554]
[1750716659243,30.0,2393.8,2393.1,0.0671554]
[1750716659624,11.3871,2393.5,2393.1,0.0171554]
[1750716659823,10.0,2393.3,2393.1,0.0171554]
[1750716660335,1.3871,2393.5,2393.1,0.0171554]
[1750716661084,1.3871,2394.1,2393.1,0.0171554]
[1750716661430,1.3871,2393.6,2393.1,0.0171554]
[1750716662379,30.0,2394.7,2393.1,0.0171554]
[1750716662669,0.04,2394.9,2393.1,0.0171554]
[1750716662670,10.0,2394.3,2393.1,0.0171554]
[1750716662963,11.4574,2394.5,2393.1,4.1957898]
[1750716662964,1.4574,2394.5,2393.1,4.1957898]
[1750716663163,1.4574,2394.5,2393.9,4.17713276]
[1750716663364,0.04,2394.9,2393.8,1.4877]
[1750716663929,0.04,2394.9,2394.1,4.17679334]
[1750716664271,0.04,2394.9,2394.8,4.17571404]
[1750716664476,0.04,2394.9,2394.7,4.175773]
[1750716664769,0.04,2394.9,2394.8,1.4877]
[1750716664969,0.04,2394.9,2394.8,6.21341404]
[1750716665132,0.04,2394.9,2394.8,6.19983404]
[1750716665467,0.04,2394.9,2394.8,6.81981744]
[1750716665630,0.04,2394.9,2394.8,2.0941034]
[1750716665835,0.04,2394.9,2394.8,6.81981744]
[1750716666051,0.04,2394.9,2394.8,6.26981744]
[1750716666536,0.04,2394.9,2394.8,2.0941034]
[1750716666933,0.04,2394.9,2394.8,6.81981744]
[1750716667161,0.04,2395.9,2395.2,4.72485139]
[1750716667329,0.04,2395.9,2395.4,0.55]
[1750716667528,0.04,2395.9,2395.1,12.839968]
[1750716667777,0.04,2395.9,2395.2,9.814]
[1750716667955,0.04,2395.9,2395.8,4.72397111]
[1750716668139,0.04,2395.9,2395.4,1.4362]
[1750716668348,0.04,2395.9,2395.8,4.72397111]
[1750716668867,0.04,2396.9,2396.5,4.17262504]
[1750716669073,0.04,2396.9,2396.5,9.804]
[1750716669843,0.04,2396.9,2396.3,9.796]
[1750716670735,0.04,2396.9,2396.2,1.4156]
[1750716670937,30.0,2396.8,2395.7,1.4156]
[1750716671273,11.4697,2396.4,2395.1,1.4156]
[1750716671497,1.4697,2396.4,2395.1,1.4156]
[1750716671677,10.0,2398.3,2396.6,1.4156]
[1750716671846,0.04,2398.9,2397.8,4.17048961]
[1750716672050,0.04,2398.9,2397.8,47.4635357]
[1750716672269,0.04,2398.9,2398.8,75.54435104]
[1750716672583,2.005999,2400.0,2399.3,29.96]
[1750716672817,2.005999,2400.0,2398.8,4.539545]
[1750716672964,2.005999,2400.0,2398.8,29.96]
[1750716673304,14.56327,2399.7,2398.3,1.4526]
[1750716673474,2.005999,2400.0,2397.9,29.96]
[1750716673475,24.56327,2399.5,2397.9,29.96]
[1750716673677,24.56327,2399.5,2397.8,1.4526]
[1750716673678,0.04,2399.9,2398.5,29.96]
[1750716673878,0.04,2399.9,2399.4,29.96]
[1750716674190,0.04,2399.9,2399.2,10.212]
[1750716674388,0.04,2399.9,2399.0,10.215]
[1750716674595,0.04,2399.9,2399.1,29.96]
[1750716674995,0.04,2399.9,2398.8,10.202]
[1750716675169,0.04,2399.9,2398.5,29.96]
[1750716675370,0.04,2399.9,2398.6,10.0]
[1750716675609,0.04,2399.9,2398.2,14.36567778]
[1750716675610,0.04,2399.9,2399.0,34.12825987]
[1750716675907,0.04,2399.9,2398.8,29.96]
[1750716676065,1.5503,2399.8,2398.8,29.96]
[1750716676419,0.04,2399.9,2398.8,29.96]
[1750716676569,0.04,2399.9,2399.4,4.16770126]
[1750716676770,0.04,2399.9,2399.5,29.96]
[1750716676988,10.04,2400.9,2399.4,10.212]
[1750716676989,2.08055389,2403.6,2401.2,29.96]
[1750716677171,1.5235,2403.7,2401.8,34.123544]
[1750716677571,1.5235,2403.7,2401.8,44.599544]
[1750716677915,1.5235,2403.7,2401.8,61.445847]
[1750716678207,14.274,2404.0,2402.1,29.96]
[1750716678208,4.253,2404.0,2402.1,29.96]
[1750716678380,4.253,2404.0,2402.0,4.16315305]
[1750716678381,4.253,2404.0,2402.2,10.473]
[1750716678580,1.4942,2404.2,2402.3,29.96]
[1750716678770,10.0,2404.1,2402.3,29.96]
[1750716679001,1.4942,2404.2,2402.8,4.16168836]
[1750716679175,1.4942,2404.2,2402.9,10.481]
[1750716679372,1.4942,2404.2,2402.8,10.482]
[1750716680071,10.0,2404.1,2402.8,10.482]
[1750716680278,1.4942,2404.2,2402.8,10.482]
[1750716680485,1.4942,2404.2,2401.7,4.16357686]
[1750716680718,1.4942,2404.2,2402.5,29.96]
[1750716681072,1.4942,2404.2,2402.6,10.464]
[1750716681274,1.4942,2404.2,2402.1,4.16288001]
[1750716681474,1.4176,2403.1,2402.3,4.16267246]
[1750716681668,4.40282987,2404.7,2402.3,4.16267246]
[1750716681669,1.66177184,2404.7,2402.5,29.96]
[1750716681874,1.66177184,2404.7,2403.1,29.96]
[1750716682224,1.66177184,2404.7,2403.1,40.471]
[1750716682528,1.66177184,2404.7,2402.6,10.515]
[1750716682529,1.4558,2403.6,2402.6,10.515]
[1750716682679,1.4558,2403.6,2402.7,29.96]
[1750716682877,1.4558,2403.6,2402.4,10.518]
[1750716683224,11.4558,2403.6,2402.4,10.518]
[1750716683378,1.4558,2404.9,2402.4,11.5698]
[1750716683566,1.4558,2403.7,2402.6,29.96]
[1750716684209,1.4558,2403.7,2402.7,10.584]
[1750716684393,1.4558,2403.7,2401.9,1.5315]
[1750716684595,1.4558,2403.7,2402.1,29.96]
[1750716684794,10.0,2403.5,2402.2,10.575]
[1750716684997,1.4558,2403.7,2402.6,1.5315]
[1750716685172,1.5159,2404.3,2403.1,4.16129166]
[1750716685511,0.24417184,2404.7,2403.1,31.4165]
[1750716685679,0.24417184,2404.7,2403.1,46.19679166]
[1750716685874,0.24417184,2404.7,2403.1,56.19679166]
[1750716686071,0.24417184,2404.7,2403.1,58.75731319]
[1750716686276,0.24417184,2404.7,2403.1,48.75731319]
[1750716686557,0.24417184,2404.7,2403.1,48.75931319]
[1750716686816,0.24417184,2404.7,2403.3,4.16094536]
[1750716687028,0.24417184,2404.7,2404.1,29.96]
[1750716687177,0.24417184,2404.7,2403.8,4.71007987]
[1750716687371,0.24417184,2404.7,2403.1,8.1813104]
[1750716687372,1.5244,2404.6,2403.2,29.96]
[1750716687604,1.5244,2404.6,2403.4,29.96]
[1750716687841,1.5244,2404.6,2403.5,10.675]
[1750716688113,1.5244,2404.6,2403.6,29.96]
[1750716688607,1.5244,2404.6,2403.1,2.41375451]
[1750716688608,1.5244,2404.6,2403.7,10.668]
[1750716688809,1.5244,2404.6,2403.8,10.668]
[1750716688997,1.5244,2404.6,2403.9,10.662]
[1750716689197,1.5244,2404.6,2402.7,1.4425]
[1750716689510,1.5244,2404.6,2402.9,29.96]
[1750716689511,14.56327,2404.5,2402.9,29.96]
[1750716689715,1.608767,2404.4,2402.9,34.12149102]
[1750716689912,1.5244,2404.6,2403.1,29.96]
[1750716690512,0.24417184,2404.7,2402.5,29.96]
[1750716690513,14.56327,2403.9,2402.5,29.96]
[1750716690697,10.0,2403.6,2402.5,29.96]
[1750716690900,1.4465,2403.8,2402.6,1.4445]
[1750716691212,1.4465,2403.8,2403.0,29.96]
[1750716691385,1.4465,2403.8,2403.1,10.608]
[1750716691623,1.4465,2403.8,2402.9,10.601]
[1750716691793,1.4465,2403.8,2402.9,10.598]
[1750716691974,14.56327,2404.5,2402.5,29.96]
[1750716692173,14.56327,2404.3,2402.6,10.593]
[1750716692372,11.4465,2404.4,2402.7,29.96]
[1750716692373,1.4465,2404.4,2402.7,29.96]
[1750716692833,1.4465,2404.4,2402.9,34.1216279]
[1750716693128,1.4465,2404.4,2403.3,29.96]
[1750716693412,1.4465,2404.4,2403.2,4.16101416]
[1750716693413,1.4465,2404.4,2403.4,10.61]
[1750716693600,1.4465,2404.4,2402.6,0.55]
[1750716693800,1.4465,2404.4,2402.8,0.55]
[1750716694011,1.4465,2404.4,2403.0,29.96]
[1750716694418,1.4465,2404.4,2402.8,29.96]
[1750716694700,1.4465,2404.4,2402.9,10.58]
[1750716694904,11.4465,2404.4,2403.0,29.96]
[1750716695076,11.4465,2404.4,2403.1,29.96]
[1750716695077,12.14465,2404.3,2403.1,29.96]
[1750716695280,1.4465,2404.4,2403.4,29.96]
[1750716695519,1.4465,2404.4,2403.3,29.96]
[1750716695678,1.4465,2404.4,2403.5,29.96]
[1750716696094,1.4465,2404.4,2403.2,34.12102949]
[1750716696290,0.24417184,2404.7,2403.6,0.55]
[1750716696517,0.24417184,2404.7,2404.0,4.15961024]
[1750716696717,0.24417184,2404.7,2404.2,29.96]
[1750716697015,4.352,2406.0,2404.1,10.549]
[1750716697016,1.5972,2408.8,2406.8,28.4016]
[1750716697217,1.5972,2408.8,2406.1,0.5]
[1750716697218,1.5972,2408.8,2407.9,34.66299638]
[1750716697424,1.5972,2408.8,2407.9,45.44599638]
[1750716697591,1.5972,2409.4,2407.9,47.78818904]
[1750716697791,1.5972,2409.4,2407.9,57.78818904]
[1750716697990,0.223627,2410.4,2408.3,4.1523066]
[1750716698191,0.223627,2410.4,2408.9,36.03995436]
[1750716698409,0.223627,2410.4,2408.9,57.43895436]
[1750716698594,0.223627,2410.4,2408.9,87.43895436]
[1750716698793,0.223627,2410.4,2408.9,81.33885745]
[1750716699006,0.223627,2410.4,2409.1,10.0]
[1750716699325,0.6352502,2410.4,2409.9,39.909464]
[1750716699495,0.6352502,2410.4,2410.3,31.888682]
[1750716699701,0.6352502,2410.4,2410.3,42.839682]
[1750716700303,0.6352502,2410.4,2410.1,10.0]
[1750716700488,0.2485406,2411.4,2410.1,10.0]
[1750716700489,0.2485406,2411.4,2410.3,42.870682]
[1750716700683,0.2485406,2411.4,2410.7,10.0]
[1750716700889,0.2485406,2411.4,2411.3,4.14714054]
[1750716701131,0.2485406,2411.4,2410.7,31.888682]
[1750716701420,7.2485406,2411.4,2411.3,31.888682]
[1750716701645,7.2485406,2411.4,2411.3,57.27382254]
[1750716701823,1.6055,2413.7,2411.3,55.998912]
[1750716701999,1.6055,2413.7,2411.9,4.14594933]
[1750716702199,1.6055,2413.7,2411.7,4.146317]
[1750716702399,0.2485406,2414.1,2410.3,4.14874926]
[1750716702400,8.089052,2412.6,2410.3,4.14874926]
[1750716702599,8.089052,2412.6,2410.0,4.14929445]
[1750716702600,16.491952,2412.4,2410.1,4.14920542]
[1750716702799,0.83332238,2412.5,2409.6,35.754619]
[1750716702800,6.491952,2411.8,2409.6,35.754619]
[1750716703009,10.0,2411.9,2409.9,4.14954977]
[1750716703304,10.0,2411.3,2410.0,31.888682]
[1750716703519,6.491952,2411.2,2409.9,4.14945919]
[1750716703717,1.5232,2411.5,2409.3,11.315]
[1750716703718,6.491952,2411.0,2409.3,11.315]
[1750716703922,6.491952,2411.0,2408.7,1.5724]
[1750716704150,6.491952,2411.0,2409.2,4.15075543]
[1750716704460,6.491952,2411.0,2408.7,1.5724]
[1750716704461,16.491952,2410.8,2408.2,1.5176]
[1750716704744,5.67034425,2410.2,2407.7,31.888682]
[1750716704954,4.14794744,2410.9,2407.4,4.15383629]
[1750716704955,16.491952,2409.9,2407.4,31.888682]
[1750716705095,1.5213,2409.1,2407.3,0.41579653]
[1750716705294,10.0,2408.9,2407.3,0.41579653]
[1750716705495,1.5666,2408.7,2406.4,11.276]
[1750716705799,3.0001,2408.7,2408.6,37.70627142]
[1750716706112,6.491952,2410.9,2409.5,31.888682]
[1750716706307,10.0,2410.7,2409.3,4.15055833]
[1750716706547,10.0,2410.7,2409.1,31.888682]
[1750716706548,10.0,2410.6,2409.1,31.888682]
[1750716706697,1.5666,2411.0,2408.6,1.6658]
[1750716706698,10.0,2410.4,2409.2,0.3580367]
[1750716706893,10.0,2410.2,2409.3,0.3580367]
[1750716707152,1.5694,2410.0,2409.4,0.3580367]
[1750716707354,1.5694,2410.0,2408.2,4.55976327]
[1750716707355,1.5694,2410.0,2409.5,0.3580367]
[1750716707549,1.5694,2410.0,2406.1,2.03292596]
[1750716707550,6.491952,2409.7,2407.6,4.15351387]
[1750716707695,6.491952,2409.7,2407.5,11.38]
[1750716707696,1.16420966,2410.0,2407.9,7.44466338]
[1750716707895,1.16420966,2410.0,2407.8,10.0]
[1750716708147,0.91420966,2410.0,2409.2,4.15073969]
[1750716708309,9.981,2412.1,2409.2,20.0]
[1750716708508,6.491952,2412.0,2409.2,10.0]
[1750716708809,6.491952,2412.0,2408.6,5.81782765]
[1750716708810,6.491952,2411.8,2409.6,4.1500664]
[1750716709011,16.491952,2411.9,2409.9,10.0]
[1750716709215,9.981,2412.1,2411.0,4.14761467]
[1750716709412,9.981,2412.1,2409.9,1.5254]
[1750716709413,9.981,2412.1,2411.2,4.14721987]
[1750716709600,9.981,2412.1,2410.6,4.14834481]
[1750716709797,9.981,2412.1,2411.3,4.14698127]
[1750716710001,9.981,2412.1,2411.1,4.14741915]
[1750716710246,9.981,2412.1,2409.1,4.65090846]
[1750716710499,9.981,2412.1,2407.9,3.58187572]
[1750716710500,6.491952,2411.7,2410.5,4.14847315]
[1750716710654,0.6496952,2411.6,2410.3,4.14876741]
[1750716710986,10.0,2411.4,2409.5,4.15023863]
[1750716711151,10.0,2411.4,2409.4,4.15041089]
[1750716711152,1.6144,2411.1,2409.4,4.15041089]
[1750716711474,1.6144,2411.1,2409.3,4.15058315]
[1750716711632,1.6144,2411.1,2409.3,10.0]
[1750716711834,1.6144,2411.1,2409.4,10.0]
[1750716712036,1.6144,2411.1,2411.0,4.14765657]
[1750716712337,0.005,2411.8,2410.5,0.55]
[1750716712656,0.005,2411.8,2410.8,10.0]
[1750716712861,6.491952,2411.7,2409.5,2.0]
[1750716713178,10.55,2411.1,2408.5,1.6474]
[1750716713472,1.5315,2411.3,2408.9,5.499895]
[1750716713473,2.7041952,2411.0,2408.9,5.499895]
[1750716713671,6.491952,2411.2,2409.0,0.34652661]
[1750716713836,9.75,2411.1,2409.4,4.15036814]
[1750716714036,1.5315,2411.3,2409.5,4.4965882]
[1750716714238,6.241952,2411.0,2409.6,0.34644032]
[1750716714562,1.5315,2411.3,2410.2,4.14892094]
[1750716714773,1.5315,2411.3,2410.4,4.14863645]
[1750716714971,1.5315,2411.3,2410.3,0.34633971]
[1750716715966,1.5315,2411.3,2410.6,4.1481935]
[1750716716175,1.5315,2411.3,2410.3,0.34633971]
[1750716716176,1.2815,2411.3,2411.0,4.14751486]
[1750716716489,1.2815,2411.3,2410.3,0.34633971]
[1750716716490,1.2815,2411.3,2410.4,0.55]
[1750716716783,9.975,2411.7,2410.6,4.69834481]
[1750716717077,0.24417184,2412.7,2410.7,0.55]
[1750716717248,0.24417184,2412.7,2410.7,15.97709181]
[1750716717450,0.24417184,2412.7,2409.7,5.7787469]
[1750716717451,0.24417184,2412.7,2409.9,4.14954977]
[1750716717649,0.24417184,2412.7,2410.2,19.058353]
[1750716718016,0.24417184,2412.7,2410.3,13.80923598]
[1750716718197,0.24417184,2412.7,2411.3,4.14712091]
[1750716718509,0.24417184,2412.7,2408.9,10.0]
[1750716718805,0.24417184,2412.7,2408.9,4.15114355]
[1750716718806,0.55,2411.1,2408.9,4.15114355]
[1750716719020,0.55,2411.1,2408.5,5.657537]
[1750716719021,6.241952,2410.9,2409.0,15.7464935]
[1750716719148,1.6617,2410.6,2409.5,4.15007026]
[1750716719349,1.6617,2410.6,2409.5,4.15007776]
[1750716719654,1.6617,2410.6,2409.1,6.0720893]
[1750716719655,1.6617,2410.6,2409.6,0.35636288]
[1750716719855,1.6617,2410.6,2410.5,14.1485169]
[1750716720079,0.005,2411.8,2410.5,4.14837088]
[1750716720389,0.005,2411.8,2410.6,0.35592328]
[1750716720590,6.241952,2411.7,2410.7,0.35592328]
[1750716720790,0.005,2411.8,2411.7,4.1464527]
[1750716720998,0.24417184,2412.7,2411.7,0.35592328]
[1750716721153,6.241952,2412.6,2411.8,0.35592328]
[1750716721349,6.241952,2412.6,2411.9,0.3564345]
[1750716721607,6.241952,2412.6,2409.1,3.95604579]
[1750716721755,6.241952,2412.3,2410.4,1.245907]
[1750716721959,0.64861238,2412.5,2410.2,11.269]
[1750716722156,6.241952,2412.6,2410.3,0.34633971]
[1750716722357,10.0,2411.3,2410.3,0.34633971]
[1750716722552,0.24417184,2412.7,2410.7,11.62906433]
[1750716722811,0.24417184,2412.7,2412.6,4.14490591]
[1750716723109,0.2485406,2414.1,2412.2,0.55]
[1750716723110,1.6293,2414.0,2412.2,0.55]
[1750716723408,10.0,2413.8,2412.1,0.55]
[1750716723554,1.6135,2413.5,2411.1,1.5497]
[1750716723760,1.6485,2413.2,2411.1,1.5497]
[1750716724059,11.6485,2412.7,2410.7,1.246114]
[1750716724383,6.241952,2411.9,2410.1,4.1491585]
[1750716724583,6.241952,2411.9,2409.3,4.15058172]
[1750716724584,11.6485,2411.5,2409.3,1.246875]
[1750716724893,1.6485,2409.9,2407.1,1.5349]
[1750716725050,10.0,2408.8,2406.8,0.36654448]
[1750716725250,7.890452,2409.0,2406.7,3.2194]
[1750716725453,7.890452,2409.0,2406.8,0.72530153]
[1750716725454,1.6485,2409.0,2406.8,0.72530153]
[1750716725677,1.6485,2409.0,2407.0,10.0]
[1750716725891,1.6485,2409.0,2407.1,0.36623463]
[1750716726090,1.6485,2409.0,2407.3,3.396881]
[1750716726276,1.6485,2409.0,2408.0,4.15280228]
[1750716726478,1.6485,2409.0,2407.6,11.325]
[1750716726663,1.6485,2409.0,2407.8,31.630024]
[1750716726853,1.6485,2409.0,2408.1,4.15253579]
[1750716727193,10.0,2410.2,2408.0,0.55]
[1750716727392,1.6241952,2410.1,2408.3,0.55]
[1750716727589,10.0,2410.8,2408.0,11.316]
[1750716727590,7.489698,2410.8,2408.5,10.0]
[1750716727809,16.241952,2410.8,2408.6,0.55]
[1750716728103,17.489309,2412.0,2409.5,0.55]
[1750716728285,16.241952,2412.0,2409.5,0.55]
[1750716728453,16.241952,2412.0,2409.7,21.471084]
[1750716728454,10.0,2411.9,2409.7,21.471084]
[1750716728649,6.241952,2412.0,2409.4,11.288]
[1750716728650,16.241952,2411.7,2409.9,10.55]
[1750716728849,10.0,2411.6,2409.8,2.1471084]
[1750716729077,10.0,2411.3,2409.0,0.55]